bitfinex/quotes_SOLUSD_20250902
["timestamp","ask_amount","ask_price","bid_price","bid_amount"]
[1756815027241,47.20148227,200.91,200.9,0.66]
[1756815027746,47.20148227,200.91,200.88,0.66]
[1756815027957,7.14148227,200.9,200.8,0.24216157]
[1756815028159,4.97710531,200.92,200.81,4.97983168]
[1756815028362,0.28432314,200.94,200.87,7.14148227]
[1756815028551,7.42580541,200.94,200.88,7.80148227]
[1756815028753,7.14148227,200.96,200.9,7.14148227]
[1756815029063,40.06,200.95,200.91,7.80148227]
[1756815029364,47.20148227,200.95,200.92,0.66]
[1756815029526,7.14148227,200.93,200.92,0.66]
[1756815029721,47.20148227,200.93,200.9,0.66]
[1756815029925,40.06,200.92,200.91,0.66]
[1756815030142,12.2598014,200.96,200.91,7.80148227]
[1756815030341,0.14216157,200.97,200.92,7.80148227]
[1756815030546,40.06,200.96,200.93,0.66]
[1756815030724,40.06,200.95,200.91,7.14148227]
[1756815031061,40.06,200.95,200.94,0.66]
[1756815031427,0.14216157,201.0,200.94,0.66]
[1756815031428,4.97388709,201.05,200.94,7.80148227]
[1756815031729,20.2,201.04,201.0,7.14148227]
[1756815031959,27.34148227,201.04,201.01,0.66]
[1756815032131,27.34148227,201.04,201.02,0.66]
[1756815032339,7.14148227,201.03,201.0,0.66]
[1756815032543,7.14148227,201.02,201.0,0.66]
[1756815032857,14.95774437,201.13,200.99,7.14148227]
[1756815033033,7.14148227,201.06,201.0,7.14148227]
[1756815033355,40.06,201.05,201.01,7.80148227]
[1756815033541,40.06,201.05,201.02,0.66]
[1756815033743,40.06,201.05,201.03,0.66]
[1756815034049,4.97265042,201.1,201.04,0.66]
[1756815034227,0.06,201.05,201.04,7.80148227]
[1756815034432,0.06,201.05,201.04,0.66]
[1756815035553,7.20148227,201.05,201.04,0.66]
[1756815035859,7.20148227,201.05,201.01,0.66]
[1756815036040,7.14148227,201.02,200.98,0.66]
[1756815036241,7.14148227,200.99,200.98,0.66]
[1756815036752,7.14148227,201.02,200.98,0.66]
[1756815036939,0.06,201.05,201.0,7.14148227]
[1756815037141,40.08,201.04,201.01,0.66]
[1756815037444,7.14148227,201.02,200.99,0.66]
[1756815037638,7.14148227,201.01,201.0,0.66]
[1756815037837,7.14148227,201.01,200.96,7.14148227]
[1756815038152,7.14148227,201.01,200.97,0.66]
[1756815038461,7.14148227,201.03,200.97,12.77728173]
[1756815038641,7.14148227,201.03,200.98,0.66]
[1756815039031,7.14148227,201.03,200.99,0.65]
[1756815039248,7.14148227,201.02,201.0,0.65]
[1756815040534,7.14148227,201.01,200.96,0.65]
[1756815040735,7.14148227,200.99,200.96,0.65]
[1756815040934,5.03396505,201.05,200.98,7.14148227]
[1756815041131,5.03396505,201.05,200.99,0.65]
[1756815041132,40.06,201.02,200.99,0.65]
[1756815041345,40.06,201.02,201.0,0.65]
[1756815041547,40.06,201.02,201.01,0.65]
[1756815042064,0.06,201.05,201.01,7.79148227]
[1756815042240,0.06,201.05,201.04,7.14148227]
[1756815042639,0.06,201.08,201.04,7.79148227]
[1756815042840,0.06,201.08,201.07,7.14148227]
[1756815043248,0.06,201.08,201.07,7.79148227]
[1756815043486,31.57314501,201.08,200.97,0.65]
[1756815043648,7.14148227,201.02,200.97,7.79148227]
[1756815043841,40.74,201.01,200.97,0.65]
[1756815044036,40.74,201.01,200.96,7.14148227]
[1756815044366,40.74,201.01,200.97,0.65]
[1756815044543,40.74,201.01,200.99,7.14148227]
[1756815044744,40.72,201.04,201.0,7.79148227]
[1756815045038,40.72,201.04,201.01,0.65]
[1756815045843,40.72,201.04,201.02,0.65]
[1756815046039,40.7,201.05,201.03,0.65]
[1756815046264,7.14148227,201.04,201.03,0.65]
[1756815046851,40.7,201.05,201.03,0.65]
[1756815047144,47.84148227,201.05,201.03,0.65]
[1756815047345,47.84148227,201.05,201.04,0.65]
[1756815047755,52.81542605,201.05,200.96,0.14216157]
[1756815047964,45.67394378,201.05,200.98,26.0]
[1756815048141,7.14148227,201.01,200.98,26.0]
[1756815048460,7.14148227,201.01,200.99,0.65]
[1756815048765,7.14148227,201.01,201.0,0.65]
[1756815049259,7.14148227,201.01,200.97,0.65]
[1756815049467,7.14148227,201.01,200.93,12.47191217]
[1756815049468,7.14148227,201.0,200.98,0.65]
[1756815050066,7.14148227,201.0,200.94,12.1180922]
[1756815050260,7.14148227,201.01,200.99,0.65]
[1756815050469,45.67389961,201.05,200.99,0.65]
[1756815050470,7.14148227,201.0,200.99,0.65]
[1756815051952,7.14148227,201.0,200.96,5.62597096]
[1756815052145,7.14148227,200.99,200.97,0.65]
[1756815052346,7.14148227,200.98,200.93,0.03]
[1756815052547,7.14148227,200.94,200.93,0.03]
[1756815053456,12.1180922,200.94,200.93,0.03]
[1756815055457,4.97660993,200.94,200.93,0.03]
[1756815055770,12.1180922,200.94,200.93,0.03]
[1756815056881,26.53800935,200.94,200.93,0.03]
[1756815057869,25.99800935,200.94,200.93,0.03]
[1756815058067,47.94580541,200.94,200.93,0.03]
[1756815058650,52.92241534,200.94,200.93,0.03]
[1756815059172,7.14148227,200.94,200.93,0.03]
[1756815059362,47.66148227,200.94,200.93,0.03]
[1756815059674,40.52,200.94,200.93,0.03]
[1756815059868,52.6380922,200.94,200.93,0.03]
[1756815060448,67.05800935,200.94,200.93,0.03]
[1756815062075,52.88241534,200.94,200.93,0.03]
[1756815062464,53.42241534,200.94,200.93,0.03]
[1756815062866,67.01800935,200.94,200.93,0.03]
[1756815063774,52.88241534,200.94,200.93,0.03]
[1756815063980,45.74093307,200.94,200.93,0.03]
[1756815064167,52.88241534,200.94,200.93,0.03]
[1756815064560,66.47800935,200.94,200.93,0.03]
[1756815064877,67.01800935,200.94,200.93,1e-08]
[1756815066174,59.87652708,200.94,200.93,1e-08]
[1756815066367,59.33652708,200.94,200.93,1e-08]
[1756815066567,52.74025377,200.94,200.93,1e-08]
[1756815066977,66.33584778,200.94,200.93,1e-08]
[1756815067158,66.47800935,200.94,200.93,1e-08]
[1756815067475,67.01800935,200.94,200.93,1e-08]
[1756815070083,66.47800935,200.94,200.93,1e-08]
[1756815071882,45.45660993,200.94,200.93,1e-08]
[1756815072194,47.50148227,200.94,200.93,0.71000001]
[1756815072566,52.4780922,200.94,200.93,0.71000001]
[1756815073259,52.4780922,200.94,200.93,1e-08]
[1756815073461,66.21584778,200.94,200.93,1e-08]
[1756815073682,66.35800935,200.94,200.93,1e-08]
[1756815074100,52.76241534,200.94,200.93,1e-08]
[1756815075573,56.26948651,200.94,200.93,1e-08]
[1756815076779,56.26948651,200.94,200.93,0.71000001]
[1756815076780,55.88516337,200.94,200.93,0.71000001]
[1756815076984,40.26,200.94,200.93,0.71000001]
[1756815077164,10.64855344,200.95,200.93,0.71000001]
[1756815077364,50.90855344,200.95,200.94,0.71]
[1756815077687,55.88491571,200.95,200.93,1e-08]
[1756815077881,10.93287658,200.94,200.93,1e-08]
[1756815078475,15.90948651,200.94,200.93,1e-08]
[1756815079479,29.50508052,200.94,200.93,1e-08]
[1756815080194,18.85652708,200.94,200.93,1e-08]
[1756815080376,30.04508052,200.94,200.93,1e-08]
[1756815081293,0.28432314,200.89,200.85,7.40244313]
[1756815081590,24.52847059,200.86,200.85,1e-08]
[1756815081762,64.74847059,200.86,200.85,1e-08]
[1756815082163,24.52847059,200.86,200.85,1e-08]
[1756815082394,64.74847059,200.86,200.85,1e-08]
[1756815082691,51.15287658,200.86,200.85,0.71000001]
[1756815083166,5.41995369,200.93,200.85,0.71000001]
[1756815083373,10.64855344,200.87,200.85,0.71000001]
[1756815083589,50.86855344,200.87,200.85,0.71000001]
[1756815083794,10.64855344,200.88,200.85,0.71000001]
[1756815083979,4.97691704,200.93,200.85,0.71000001]
[1756815084188,12.43985296,200.97,200.86,10.64855344]
[1756815084189,10.64855344,200.91,200.86,10.64855344]
[1756815084387,40.22,200.9,200.87,0.71]
[1756815084581,50.86855344,200.9,200.87,0.71]
[1756815085472,10.64855344,200.89,200.85,1e-08]
[1756815085673,40.22,200.9,200.86,0.71]
[1756815085674,40.22,200.88,200.86,0.71]
[1756815085898,0.28432314,200.86,200.85,1e-08]
[1756815086191,51.13287658,200.86,200.85,1e-08]
[1756815087199,56.11146863,200.86,200.85,1e-08]
[1756815088000,10.64855344,200.86,200.85,0.71000001]
[1756815088190,40.2,200.86,200.85,0.71000001]
[1756815088382,40.18,200.86,200.85,0.71000001]
[1756815088588,10.64855344,200.89,200.85,0.71000001]
[1756815088780,4.05667534,200.99,200.85,0.71000001]
[1756815088781,40.2,200.9,200.86,10.64855344]
[1756815089114,10.64855344,200.89,200.87,0.71]
[1756815089402,10.64855344,200.89,200.88,0.71]
[1756815090471,50.84855344,200.9,200.88,0.71]
[1756815090668,10.64855344,200.89,200.88,0.71]
[1756815091279,10.64855344,200.89,200.85,1e-08]
[1756815091280,15.62642561,200.89,200.85,1e-08]
[1756815091474,10.64855344,200.86,200.85,0.71000001]
[1756815091682,50.80855344,200.86,200.85,0.71000001]
[1756815092100,0.28432314,200.88,200.85,0.71000001]
[1756815092304,0.28432314,200.9,200.85,1e-08]
[1756815092305,10.64855344,200.86,200.85,1e-08]
[1756815092479,40.18,200.86,200.85,1e-08]
[1756815092890,40.18,200.86,200.85,0.71000001]
[1756815093490,5.2619528,200.9,200.85,0.71000001]
[1756815093689,10.64855344,200.87,200.85,0.71000001]
[1756815093884,50.80855344,200.87,200.86,0.71]
[1756815094693,40.16,200.87,200.86,0.71]
[1756815095001,40.16,200.87,200.85,0.03000001]
[1756815095297,10.64855344,200.86,200.85,0.74000001]
[1756815095511,50.80855344,200.87,200.86,0.71]
[1756815096478,40.16,200.87,200.86,0.71]
[1756815097315,50.80855344,200.87,200.86,0.71]
[1756815097484,50.80855344,200.87,200.85,0.03000001]
[1756815097680,10.64855344,200.86,200.85,0.03000001]
[1756815097883,40.16,200.87,200.85,0.74000001]
[1756815098079,10.64855344,200.86,200.85,0.74000001]
[1756815098906,40.14,200.87,200.85,0.74000001]
[1756815099088,40.14,200.87,200.85,5.7187721]
[1756815099288,40.14,200.87,200.86,0.66]
[1756815099684,133.8,200.9,200.86,0.66]
[1756815099893,40.14,200.89,200.86,0.66]
[1756815100096,40.14,200.89,200.87,0.66]
[1756815100294,40.14,200.89,200.88,0.66]
[1756815101013,133.8,200.9,200.88,0.66]
[1756815101311,173.94,200.9,200.88,0.66]
[1756815101621,184.58855344,200.9,200.89,0.66]
[1756815101826,173.94,200.9,200.89,0.66]
[1756815102519,184.58855344,200.9,200.86,0.66]
[1756815102718,10.64855344,200.88,200.86,0.66]
[1756815102917,10.64855344,200.87,200.85,0.03000001]
[1756815103093,50.78855344,200.86,200.85,0.03000001]
[1756815103293,40.14,200.86,200.85,0.03000001]
[1756815103509,40.14,200.86,200.85,0.69000001]
[1756815103711,40.14,200.87,200.85,0.69000001]
[1756815104018,50.78855344,200.88,200.85,0.69000001]
[1756815104201,50.78855344,200.88,200.86,0.66]
[1756815104605,10.64855344,200.87,200.85,0.03000001]
[1756815104819,40.14,200.86,200.85,0.03000001]
[1756815105123,40.14,200.86,200.85,0.69000001]
[1756815105310,10.64855344,200.87,200.85,0.69000001]
[1756815105539,50.78855344,200.87,200.85,0.69000001]
[1756815105809,50.78855344,200.87,200.85,0.03000001]
[1756815106718,10.93287658,200.86,200.85,0.03000001]
[1756815107515,15.91146863,200.86,200.85,0.03000001]
[1756815108724,5.26291519,200.86,200.85,0.03000001]
[1756815108924,10.64855344,200.86,200.85,0.03000001]
[1756815109123,4.97822687,200.88,200.85,0.69000001]
[1756815109124,50.78855344,200.88,200.85,0.69000001]
[1756815109833,10.64855344,200.86,200.85,0.03000001]
[1756815110033,10.64855344,200.87,200.85,0.69000001]
[1756815110331,40.14,200.88,200.85,0.69000001]
[1756815110332,50.78855344,200.88,200.85,0.69000001]
[1756815110622,10.64855344,200.87,200.85,0.69000001]
[1756815110805,50.78855344,200.86,200.85,0.03000001]
[1756815111406,55.76714549,200.86,200.85,0.03000001]
[1756815111739,56.05146863,200.86,200.85,0.03000001]
[1756815113225,51.07287658,200.86,200.85,0.03000001]
[1756815113399,5.03815535,200.88,200.85,0.03000001]
[1756815113734,50.78855344,200.87,200.85,0.69000001]
[1756815113900,40.14,200.86,200.85,0.69000001]
[1756815114517,40.14,200.87,200.85,0.69000001]
[1756815114721,40.2,200.88,200.85,0.69000001]
[1756815114902,40.2,200.88,200.86,0.66]
[1756815115425,0.06,200.88,200.87,0.66]
[1756815115617,0.06,200.88,200.87,5.6383442]
[1756815115800,0.06,200.88,200.87,16.28689764]
[1756815116000,0.06,200.88,200.87,5.6383442]
[1756815116500,0.06,200.88,200.87,0.66]
[1756815116920,0.06,200.88,200.87,5.6383442]
[1756815117122,0.06,200.88,200.87,16.28689764]
[1756815117621,0.06,200.88,200.87,5.6383442]
[1756815117814,0.06,200.88,200.87,10.1053578]
[1756815118825,0.06,200.88,200.87,0.66]
[1756815119323,0.06,200.88,200.87,5.6383442]
[1756815119504,0.06,200.88,200.87,10.1053578]
[1756815121012,0.06,200.94,200.88,0.14216157]
[1756815121323,0.06,200.94,200.93,4.4670136]
[1756815121526,0.06,200.94,200.93,5.63685761]
[1756815121701,0.06,200.94,200.93,10.10387121]
[1756815121904,0.06,200.97,200.93,10.10387121]
[1756815121905,0.06,200.97,200.93,22.68817681]
[1756815122110,0.06,200.97,200.96,30.60917517]
[1756815122516,0.06,200.97,200.96,31.26917517]
[1756815123104,1e-08,200.97,200.96,27.29977303]
[1756815123408,1e-08,200.97,200.96,40.39775558]
[1756815123620,1e-08,200.97,200.96,96.12470928]
[1756815124199,1e-08,200.97,200.96,116.62232074]
[1756815124412,1e-08,200.97,200.96,116.12470928]
[1756815124607,1e-08,200.97,200.96,96.12470928]
[1756815125828,1e-08,200.99,200.97,33.73775558]
[1756815126032,1e-08,200.99,200.98,24.86615658]
[1756815126207,1e-08,200.99,200.98,11.93056257]
[1756815126403,1e-08,200.99,200.98,11.43300063]
[1756815127100,1e-08,200.99,200.98,65.14859464]
[1756815127506,1e-08,200.99,200.98,25.02859464]
[1756815127821,1e-08,200.99,200.98,70.1242141]
[1756815129143,0.06,201.05,201.02,26.0]
[1756815129321,0.06,201.05,201.04,36.77300063]
[1756815129815,0.06,201.05,201.04,42.45713513]
[1756815130610,0.06,201.05,201.04,82.55713513]
[1756815131545,0.06,201.05,201.04,31.82629607]
[1756815131854,1e-08,201.05,201.04,80.7835682]
[1756815132016,1e-08,201.09,201.08,59.73775558]
[1756815132216,1e-08,201.09,201.08,70.86590914]
[1756815132438,1e-08,201.09,201.08,71.57590914]
[1756815132643,0.54,201.2,201.09,0.14216157]
[1756815132852,10.63083906,201.22,201.13,10.77300063]
[1756815133142,0.54,201.23,201.13,50.87300063]
[1756815133340,0.54,201.23,201.13,51.58300063]
[1756815134027,0.54,201.23,201.13,56.55490934]
[1756815134231,1e-08,201.14,201.13,19.41966429]
[1756815134435,1e-08,201.14,201.13,70.15050335]
[1756815134630,1e-08,201.14,201.13,30.05050335]
[1756815134837,1e-08,201.14,201.13,70.15050335]
[1756815135031,1e-08,201.14,201.13,30.05050335]
[1756815135231,1e-08,201.14,201.13,70.13050335]
[1756815135444,1e-08,201.14,201.13,19.91685516]
[1756815135629,1e-08,201.14,201.13,70.13050335]
[1756815136021,1e-08,201.14,201.13,70.91201736]
[1756815136231,1e-08,201.17,201.16,39.73775558]
[1756815136432,1e-08,201.17,201.16,90.44859464]
[1756815136646,1e-08,201.17,201.16,51.07859464]
[1756815136824,1e-08,201.17,201.16,91.15859464]
[1756815137464,1e-08,201.17,201.16,87.65032595]
[1756815137949,1e-08,201.17,201.16,92.62149318]
[1756815138443,0.06,201.26,201.17,0.14216157]
[1756815138631,0.06,201.26,201.22,7.12257037]
[1756815138839,0.06,201.26,201.22,47.20257037]
[1756815139340,0.06,201.26,201.23,7.12257037]
[1756815139739,0.06,201.26,201.22,40.08]
[1756815139740,0.06,201.26,201.25,7.12257037]
[1756815140254,0.06,201.26,201.25,52.15151446]
[1756815140455,0.06,201.26,201.25,45.02894409]
[1756815140657,0.06,201.26,201.25,40.06]
[1756815140834,0.06,201.26,201.25,53.00367603]
[1756815141219,0.06,201.26,201.25,26.0]
[1756815141427,0.06,201.26,201.25,78.15151446]
[1756815142338,0.06,201.26,201.25,38.23367603]
[1756815142623,0.06,201.26,201.25,79.00367603]
[1756815143925,0.06,201.26,201.25,52.15151446]
[1756815144434,0.06,201.26,201.25,52.29367603]
[1756815144636,0.06,201.26,201.25,53.00367603]
[1756815145031,0.06,201.26,201.25,12.94367603]
[1756815145226,0.06,201.26,201.25,53.00367603]
[1756815145427,0.06,201.29,201.28,26.0]
[1756815145730,0.06,201.29,201.28,69.04867405]
[1756815146129,0.06,201.29,201.28,69.75867405]
[1756815146543,0.06,201.29,201.28,74.01687754]
[1756815146930,0.06,201.29,201.28,74.72687754]
[1756815147125,0.06,201.29,201.28,73.99687754]
[1756815147529,0.06,201.29,201.28,33.95687754]
[1756815147848,0.06,201.29,201.28,73.99687754]
[1756815148555,0.06,201.29,201.28,71.15036506]
[1756815148727,0.06,201.29,201.28,74.70687754]
[1756815149133,0.06,201.29,201.28,73.99687754]
[1756815149847,0.06,201.29,201.28,40.04]
[1756815150644,0.06,201.29,201.25,2.84651248]
[1756815150849,0.06,201.29,201.26,42.88651248]
[1756815151158,0.06,201.29,201.27,42.88651248]
[1756815151535,0.06,201.29,201.28,2.84651248]
[1756815151729,0.06,201.29,201.27,40.04]
[1756815151924,0.06,201.29,201.25,26.0]
[1756815152128,2.84651248,201.26,201.17,5.68092011]
[1756815152341,0.3,201.28,201.18,40.04]
[1756815152342,2.84651248,201.25,201.18,40.04]
[1756815152547,0.3,201.28,201.18,66.04]
[1756815152754,2.84651248,201.26,201.21,2.84651248]
[1756815153059,2.84651248,201.26,201.22,40.04]
[1756815153357,2.84651248,201.27,201.22,42.88651248]
[1756815153525,3.14651248,201.26,201.22,40.04]
[1756815153731,3.14651248,201.26,201.21,2.84651248]
[1756815154060,2.84651248,201.26,201.22,40.04]
[1756815154241,3.14651248,201.26,201.22,40.04]
[1756815154550,5.02796356,201.29,201.17,0.14216157]
[1756815154551,2.84651248,201.23,201.2,26.0]
[1756815154855,2.84651248,201.23,201.2,66.04]
[1756815155228,3.14651248,201.25,201.2,73.85664243]
[1756815155562,3.14651248,201.24,201.2,26.0]
[1756815155757,2.84651248,201.21,201.14,4.97166152]
[1756815156053,2.84651248,201.21,201.15,42.88651248]
[1756815156054,2.84651248,201.2,201.15,42.88651248]
[1756815156236,0.3,201.25,201.18,2.84651248]
[1756815156443,2.84651248,201.24,201.18,42.88651248]
[1756815156641,5.26898393,201.25,201.18,42.88651248]
[1756815156952,2.84651248,201.2,201.16,40.04]
[1756815157251,3.14651248,201.2,201.16,40.04]
[1756815157429,0.3,201.22,201.16,40.04]
[1756815157629,2.84651248,201.2,201.16,40.04]
[1756815158080,2.84651248,201.2,201.16,45.01106956]
[1756815158252,5.26976647,201.22,201.14,40.04]
[1756815158430,2.84651248,201.21,201.16,2.84651248]
[1756815158755,2.84651248,201.23,201.17,3.55651248]
[1756815159137,2.84651248,201.23,201.17,43.59651248]
[1756815159337,2.84651248,201.23,201.18,2.84651248]
[1756815159656,0.3,201.26,201.2,2.84651248]
[1756815159947,0.3,201.28,201.21,2.84651248]
[1756815160150,2.84651248,201.26,201.21,7.81640198]
[1756815160351,0.3,201.26,201.19,5.65030781]
[1756815160530,3.14651248,201.26,201.19,5.65030781]
[1756815160736,2.84651248,201.26,201.19,5.65030781]
[1756815160936,2.84651248,201.27,201.19,5.65030781]
[1756815161245,0.3,201.28,201.21,2.84651248]
[1756815161449,2.84651248,201.25,201.17,26.0]
[1756815161761,2.84651248,201.18,201.13,0.71]
[1756815161960,2.84651248,201.18,201.13,47.88837372]
[1756815162141,0.3,201.24,201.17,2.84651248]
[1756815162343,2.84651248,201.21,201.16,2.84651248]
[1756815162541,2.84651248,201.2,201.14,4.97163822]
[1756815162745,2.84651248,201.18,201.14,4.97163822]
[1756815162952,2.84651248,201.19,201.14,8.4981507]
[1756815163437,7.12870683,201.19,201.14,12.78034505]
[1756815164255,7.12870683,201.19,201.14,7.80870683]
[1756815164464,7.12870683,201.16,201.13,0.03]
[1756815164754,0.3,201.18,201.13,0.03]
[1756815164964,7.12870683,201.15,201.13,0.03]
[1756815165132,7.12870683,201.16,201.13,0.03]
[1756815165632,7.12870683,201.14,201.13,0.03]
[1756815165844,12.10036835,201.14,201.13,0.03]
[1756815166041,0.3,201.17,201.13,0.03]
[1756815166354,7.12870683,201.14,201.13,0.03]
[1756815166940,146.22408732,201.23,201.13,0.03]
[1756815167257,7.12870683,201.17,201.13,0.03]
[1756815167446,133.8,201.22,201.15,7.12870683]
[1756815167641,7.12870683,201.2,201.14,0.68]
[1756815167851,7.12870683,201.19,201.15,4.97141436]
[1756815168246,0.3,201.21,201.15,4.97141436]
[1756815168447,7.12870683,201.19,201.15,4.97141436]
[1756815168836,7.12870683,201.2,201.15,12.78012119]
[1756815169233,5.11139168,201.24,201.15,12.78012119]
[1756815169234,13.59559401,201.26,201.16,7.80870683]
[1756815169462,3.61742397,201.25,201.2,7.12870683]
[1756815169756,7.12870683,201.23,201.18,7.80870683]
[1756815169956,7.12870683,201.24,201.18,12.77929083]
[1756815170161,7.12870683,201.24,201.19,7.80870683]
[1756815170579,7.12870683,201.24,201.2,0.68]
[1756815170743,0.3,201.27,201.18,12.09933294]
[1756815170947,7.12870683,201.25,201.2,7.80870683]
[1756815171143,3.62011336,201.24,201.18,7.12870683]
[1756815171347,10.74882019,201.23,201.17,0.68]
[1756815171654,0.3,201.24,201.17,0.68]
[1756815171854,10.75051952,201.23,201.19,4.97042596]
[1756815172056,7.12870683,201.24,201.19,12.09913279]
[1756815172240,7.12870683,201.24,201.2,0.68]
[1756815172848,0.36,201.29,201.21,7.80870683]
[1756815173053,7.12870683,201.27,201.22,7.12870683]
[1756815173257,3.62425109,201.26,201.22,7.80870683]
[1756815173661,7.12870683,201.27,201.22,7.80870683]
[1756815173844,0.06,201.29,201.24,4.96919101]
[1756815174050,0.06,201.29,201.24,12.77789784]
[1756815174051,3.62691676,201.28,201.24,12.77789784]
[1756815174251,7.18870683,201.29,201.25,0.68]
[1756815174564,3.6296106,201.28,201.25,0.68]
[1756815174864,0.06,201.29,201.25,0.68]
[1756815175161,3.63199851,201.28,201.25,0.68]
[1756815175366,7.12870683,201.28,201.23,33.12870683]
[1756815175577,7.12870683,201.28,201.24,0.68]
[1756815175771,7.18870683,201.29,201.25,0.68]
[1756815175954,3.63199019,201.28,201.25,5.64891932]
[1756815176144,7.18870683,201.29,201.25,5.64891932]
[1756815176341,3.63411205,201.28,201.25,5.64891932]
[1756815176540,7.18870683,201.29,201.25,5.64891932]
[1756815176761,3.63411871,201.28,201.25,0.68]
[1756815176961,0.3,201.28,201.2,0.14216157]
[1756815177169,7.12870683,201.26,201.21,7.80870683]
[1756815177350,5.02796856,201.29,201.22,0.68]
[1756815177548,7.12870683,201.27,201.22,7.80870683]
[1756815177755,7.12870683,201.28,201.23,7.80870683]
[1756815177958,7.12870683,201.28,201.24,5.64919101]
[1756815179876,7.12870683,201.28,201.2,38.42515013]
[1756815179877,7.12870683,201.25,201.21,26.0]
[1756815180075,5.26820349,201.28,201.21,26.0]
[1756815180386,5.31228782,201.29,201.21,33.80870683]
[1756815180554,3.93411812,201.28,201.21,26.68]
[1756815180760,7.12870683,201.27,201.22,7.80870683]
[1756815180961,7.12870683,201.28,201.23,0.68]
[1756815181277,7.12870683,201.28,201.24,0.68]
[1756815181459,7.12870683,201.27,201.22,7.80870683]
[1756815181654,7.12870683,201.27,201.23,0.68]
[1756815181849,7.12870683,201.25,201.21,30.9698934]
[1756815182052,7.12870683,201.24,201.21,31.64992647]
[1756815182281,5.61232129,201.29,201.21,31.64992647]
[1756815182573,7.12870683,201.26,201.21,30.96992647]
[1756815182873,7.12870683,201.27,201.22,7.80870683]
[1756815183172,0.06,201.29,201.24,7.12870683]
[1756815183389,0.06,201.29,201.25,7.12870683]
[1756815183558,0.06,201.29,201.26,0.68]
[1756815183971,0.06,201.29,201.26,5.64869681]
[1756815184279,0.06,201.29,201.23,7.80870683]
[1756815184578,7.12870683,201.28,201.24,0.68]
[1756815184785,7.12870683,201.25,201.21,26.0]
[1756815185074,7.12870683,201.24,201.21,31.64992288]
[1756815185278,0.3,201.26,201.17,0.68]
[1756815185480,0.3,201.26,201.18,26.68]
[1756815185481,2.85061907,201.22,201.18,26.68]
[1756815185668,2.85061907,201.23,201.19,0.68]
[1756815185979,2.85061907,201.23,201.2,0.68]
[1756815186172,5.2687375,201.26,201.2,5.65014932]
[1756815186376,0.36,201.29,201.21,0.68]
[1756815186574,2.85061907,201.26,201.21,3.53061907]
[1756815186877,2.85061907,201.26,201.2,4.97014932]
[1756815186878,2.85061907,201.23,201.2,4.97014932]
[1756815187087,2.85061907,201.22,201.21,0.03]
[1756815187263,5.02803171,201.29,201.21,0.03]
[1756815187472,0.06,201.28,201.21,0.03]
[1756815187665,2.85061907,201.23,201.21,0.03]
[1756815187981,2.85061907,201.26,201.22,0.68]
[1756815188165,2.85061907,201.26,201.23,5.64943795]
[1756815188361,0.06,201.28,201.23,5.64943795]
[1756815188362,2.85061907,201.25,201.23,0.68]
[1756815188882,2.85061907,201.24,201.21,0.03]
[1756815189069,2.85061907,201.25,201.22,0.66]
[1756815189571,2.85061907,201.24,201.22,0.66]
[1756815189883,2.85061907,201.23,201.21,4.99992071]
[1756815190107,3.43494221,201.22,201.21,0.03]
[1756815190262,14.83741849,201.22,201.21,0.03]
[1756815190463,29.13494221,201.22,201.21,0.03]
[1756815190772,43.03053622,201.22,201.21,0.03]
[1756815191082,54.4330125,201.22,201.21,0.03]
[1756815191282,26.0,201.19,201.18,0.03]
[1756815191491,0.28432314,201.17,201.13,0.03]
[1756815191692,3.13494221,201.14,201.13,0.03]
[1756815191987,3.43494221,201.14,201.13,0.03]
[1756815192193,22.00219774,201.14,201.13,0.03]
[1756815192772,0.28432314,201.13,201.1,0.03]
[1756815192986,40.53741849,201.11,201.1,0.03]
[1756815193198,40.83741849,201.11,201.1,0.03]
[1756815193494,47.31899454,201.11,201.1,0.03]
[1756815193866,40.17991715,201.11,201.1,0.03]